[Event "4. Memorial Svat.Hastika OPEN"]
[Site "Jesenik, Czech Republic"]
[Date "2022.09.03"]
[Round "8.4"]
[White "Cechacek, Miroslav"]
[Black "Cempel, Jaroslav"]
[Result "0-1"]
[TimeControl "720+3"]
[WhiteFideId "377090"]
[BlackFideId "300730"]
[WhiteElo "1541"]
[BlackElo "1911"]

1. e4 {[%clk 00:12:04]} {[%emt 00:00:02]} e5 {[%clk 00:12:04]} {[%emt
00:00:02]} 2. f4 {[%clk 00:12:04]} {[%emt 00:00:02]} exf4 {[%clk 00:12:06]}
{[%emt 00:00:01]} 3. Nf3 {[%clk 00:12:06]} {[%emt 00:00:02]} g5 {[%clk
00:12:08]} 4. Bc4 {[%clk 00:12:07]} {[%emt 00:00:03]} Bg7 {[%clk 00:12:10]} 5.
d4 {[%clk 00:12:01]} {[%emt 00:00:09]} h6 {[%clk 00:11:51]} {[%emt 00:00:22]} 6.
O-O {[%clk 00:11:53]} {[%emt 00:00:10]} d6 {[%clk 00:11:41]} {[%emt 00:00:13]}
7. Nc3 {[%clk 00:11:34]} {[%emt 00:00:23]} Bg4 {[%clk 00:11:37]} {[%emt
00:00:06]} 8. h3 {[%clk 00:11:28]} {[%emt 00:00:10]} Bh5 {[%clk 00:11:38]}
{[%emt 00:00:02]} 9. Qd3 {[%clk 00:09:05]} {[%emt 00:02:26]} Ne7 {[%clk
00:10:55]} {[%emt 00:00:46]} 10. h4 {[%clk 00:08:20]} {[%emt 00:00:48]} Nbc6
{[%clk 00:10:02]} {[%emt 00:00:56]} 11. Bb5 {[%clk 00:06:54]} {[%emt 00:01:28]}
a6 {[%clk 00:09:20]} {[%emt 00:00:45]} 12. Bxc6+ {[%clk 00:06:53]} {[%emt
00:00:04]} Nxc6 {[%clk 00:09:20]} {[%emt 00:00:03]} 13. hxg5 {[%clk 00:05:33]}
{[%emt 00:01:23]} hxg5 {[%clk 00:07:30]} {[%emt 00:01:52]} 14. e5 {[%clk
00:03:39]} {[%emt 00:01:58]} Bxf3 {[%clk 00:06:45]} {[%emt 00:00:48]} 15. Rxf3
{[%clk 00:03:28]} {[%emt 00:00:15]} dxe5 {[%clk 00:06:29]} {[%emt 00:00:19]} 16.
dxe5 {[%clk 00:03:01]} {[%emt 00:00:29]} Qxd3 {[%clk 00:06:11]} {[%emt
00:00:21]} 17. Rxd3 {[%clk 00:03:00]} {[%emt 00:00:03]} Nxe5 {[%clk 00:06:07]}
{[%emt 00:00:08]} 18. Rd5 {[%clk 00:02:06]} {[%emt 00:00:58]} Nc6 {[%clk
00:04:54]} {[%emt 00:01:14]} 19. Ne4 {[%clk 00:02:01]} {[%emt 00:00:09]} Bd4+
{[%clk 00:04:17]} {[%emt 00:00:40]} 20. Kf1 {[%clk 00:00:59]} {[%emt 00:01:05]}
Rh1+ {[%clk 00:04:08]} {[%emt 00:00:11]} 21. Ke2 {[%clk 00:01:01]} Be3 {[%clk
00:03:59]} {[%emt 00:00:13]} 22. Nd2 {[%clk 00:00:05]} {[%emt 00:01:00]} Rd8
{[%clk 00:03:19]} {[%emt 00:00:39]} 23. Rxd8+ {[%clk 00:00:07]} {[%emt
00:00:05]} Kxd8 {[%clk 00:03:20]} {[%emt 00:00:02]} 24. Nb3 {[%clk 00:00:00]}
{[%emt 00:00:15]} Bxc1 {[%clk 00:03:20]} {[%emt 00:00:13]} 25. Rxc1 {[%clk
00:00:00]} {[%emt 00:00:02]} Nd4+ {[%clk 00:03:20]} {[%emt 00:00:27]} 26. Nxd4
{[%clk 00:00:00]} {[%emt 00:00:04]} Rxc1 {[%clk 00:03:20]} 27. Kf3 {[%clk
00:00:00]} {[%emt 00:00:05]} 0-1

[Event "4. Memorial Svat.Hastika OPEN"]
[Site "Jesenik, Czech Republic"]
[Date "2022.09.03"]
[Round "8.6"]
[White "Bares, Jachym"]
[Black "Kincl, Dobromir"]
[Result "1-0"]
[TimeControl "720+3"]
[WhiteFideId "345075"]
[WhiteElo "1978"]
[BlackElo "1683"]

1. e4 {[%clk 00:12:04]} {[%emt 00:00:02]} d6 {[%clk 00:12:05]} 2. d4 {[%clk
00:12:06]} Nf6 {[%clk 00:12:07]} {[%emt 00:00:02]} 3. Nc3 {[%clk 00:12:08]} c6
{[%clk 00:12:09]} 4. Be3 {[%emt 00:00:03]} Ng4 {[%clk 00:12:10]} 5. Bg5 {[%clk
00:12:01]} {[%emt 00:00:12]} Qa5 {[%clk 00:11:31]} {[%emt 00:00:40]} 6. Bd2
{[%clk 00:11:39]} {[%emt 00:00:26]} e5 {[%clk 00:10:50]} {[%emt 00:00:44]} 7.
Nf3 {[%clk 00:11:19]} {[%emt 00:00:23]} exd4 {[%clk 00:10:41]} {[%emt
00:00:13]} 8. Nxd4 {[%clk 00:11:19]} {[%emt 00:00:02]} Qb6 {[%clk 00:10:10]}
{[%emt 00:00:34]} 9. Nce2 {[%clk 00:10:49]} {[%emt 00:00:34]} Be7 {[%clk
00:09:19]} {[%emt 00:00:54]} 10. f3 {[%clk 00:09:48]} {[%emt 00:01:04]} Bf6
{[%clk 00:07:16]} {[%emt 00:02:05]} 11. Bc3 {[%clk 00:09:15]} {[%emt 00:00:36]}
Ne3 {[%clk 00:07:00]} {[%emt 00:00:19]} 12. Qd3 {[%clk 00:09:00]} {[%emt
00:00:18]} Nxf1 {[%clk 00:06:43]} {[%emt 00:00:19]} 13. Rxf1 {[%clk 00:09:01]}
{[%emt 00:00:02]} O-O {[%clk 00:06:16]} {[%emt 00:00:30]} 14. O-O-O {[%clk
00:09:01]} {[%emt 00:00:04]} Nd7 {[%clk 00:05:51]} {[%emt 00:00:28]} 15. Nf5
{[%clk 00:08:56]} {[%emt 00:00:08]} Bxc3 {[%clk 00:05:03]} {[%emt 00:00:50]} 16.
Qxc3 {[%clk 00:08:53]} {[%emt 00:00:06]} Nf6 {[%clk 00:03:52]} {[%emt
00:01:15]} 17. Rxd6 {[%clk 00:08:51]} {[%emt 00:00:05]} Bxf5 {[%clk 00:03:40]}
{[%emt 00:00:15]} 18. exf5 {[%clk 00:08:44]} {[%emt 00:00:10]} Nd5 {[%clk
00:03:41]} {[%emt 00:00:01]} 19. Qd4 {[%clk 00:08:26]} {[%emt 00:00:22]} Qc7
{[%clk 00:03:05]} {[%emt 00:00:38]} 20. Qc5 {[%clk 00:07:52]} {[%emt 00:00:38]}
Ne3 {[%clk 00:01:57]} {[%emt 00:01:11]} 21. Rg1 {[%clk 00:07:21]} {[%emt
00:00:33]} Nxf5 {[%clk 00:01:56]} {[%emt 00:00:04]} 22. Rd3 {[%clk 00:07:05]}
{[%emt 00:00:20]} g6 {[%clk 00:01:17]} {[%emt 00:00:41]} 23. g4 {[%clk
00:07:02]} {[%emt 00:00:06]} Ne7 {[%clk 00:01:02]} {[%emt 00:00:19]} 24. Rgd1
{[%clk 00:06:41]} {[%emt 00:00:24]} b6 {[%clk 00:01:01]} {[%emt 00:00:03]} 25.
Qg5 {[%clk 00:06:14]} {[%emt 00:00:29]} Nd5 {[%clk 00:00:46]} {[%emt 00:00:20]}
26. Kb1 {[%clk 00:05:49]} {[%emt 00:00:28]} Rae8 {[%clk 00:00:47]} {[%emt
00:00:02]} 27. Ng3 {[%clk 00:05:14]} {[%emt 00:00:37]} Re5 {[%clk 00:00:48]}
{[%emt 00:00:02]} 28. Nf5 {[%clk 00:03:57]} {[%emt 00:01:20]} f6 {[%clk
00:00:24]} {[%emt 00:00:27]} 29. Nh6+ {[%clk 00:03:51]} {[%emt 00:00:09]} Kg7
{[%clk 00:00:18]} {[%emt 00:00:09]} 30. Qh4 {[%clk 00:03:46]} {[%emt 00:00:08]}
Re7 {[%emt 00:00:20]} 1-0

[Event "4. Memorial Svat.Hastika OPEN"]
[Site "Jesenik, Czech Republic"]
[Date "2022.09.03"]
[Round "8.7"]
[White "Zrubek, Adam"]
[Black "Haidenko, Mykola"]
[Result "1-0"]
[TimeControl "720+3"]
[WhiteFideId "23718706"]
[BlackFideId "23731958"]
[WhiteElo "1583"]
[BlackElo "1429"]

1. e4 {[%clk 00:12:04]} {[%emt 00:00:02]} c5 {[%clk 00:12:06]} 2. Nf3 {[%clk
00:12:05]} {[%emt 00:00:02]} Nc6 {[%clk 00:12:09]} 3. d4 {[%clk 00:12:07]} cxd4
{[%clk 00:12:11]} {[%emt 00:00:01]} 4. Nxd4 {[%clk 00:12:09]} {[%emt 00:00:01]}
g6 {[%clk 00:12:13]} 5. Be3 {[%clk 00:11:52]} {[%emt 00:00:20]} Bg7 {[%clk
00:12:15]} {[%emt 00:00:01]} 6. c4 {[%clk 00:11:48]} {[%emt 00:00:07]} Nf6
{[%clk 00:12:03]} {[%emt 00:00:15]} 7. Nc3 {[%clk 00:11:45]} {[%emt 00:00:06]}
O-O {[%clk 00:11:40]} {[%emt 00:00:26]} 8. Be2 {[%clk 00:11:34]} {[%emt
00:00:14]} b6 {[%clk 00:10:50]} {[%emt 00:00:53]} 9. Nxc6 {[%clk 00:11:10]}
{[%emt 00:00:27]} dxc6 {[%clk 00:10:51]} {[%emt 00:00:03]} 10. O-O {[%clk
00:10:54]} {[%emt 00:00:18]} Bb7 {[%clk 00:10:49]} {[%emt 00:00:06]} 11. Bf3
{[%clk 00:10:40]} {[%emt 00:00:16]} c5 {[%clk 00:09:59]} {[%emt 00:00:54]} 12.
Rb1 {[%clk 00:10:15]} {[%emt 00:00:28]} Qc7 {[%clk 00:09:45]} {[%emt 00:00:18]}
13. Nd5 {[%clk 00:09:52]} {[%emt 00:00:24]} Nxd5 {[%clk 00:09:16]} {[%emt
00:00:33]} 14. exd5 {[%clk 00:09:44]} {[%emt 00:00:11]} Ba6 {[%clk 00:09:06]}
{[%emt 00:00:13]} 15. d6 {[%clk 00:09:00]} {[%emt 00:00:46]} exd6 {[%clk
00:09:01]} {[%emt 00:00:08]} 16. Bxa8 {[%clk 00:08:56]} {[%emt 00:00:07]} Rxa8
{[%clk 00:09:03]} {[%emt 00:00:02]} 17. b3 {[%clk 00:08:46]} {[%emt 00:00:12]}
d5 {[%clk 00:09:04]} {[%emt 00:00:02]} 18. Qxd5 {[%clk 00:08:12]} {[%emt
00:00:37]} Bb7 {[%clk 00:08:52]} {[%emt 00:00:15]} 19. Qg5 {[%clk 00:07:45]}
{[%emt 00:00:30]} Re8 {[%clk 00:07:31]} {[%emt 00:01:25]} 20. Rfe1 {[%clk
00:07:12]} {[%emt 00:00:36]} Re5 {[%clk 00:06:47]} {[%emt 00:00:47]} 21. Qg3
{[%clk 00:06:49]} {[%emt 00:00:26]} Qe7 {[%clk 00:06:40]} {[%emt 00:00:11]} 22.
Bd2 {[%clk 00:06:24]} {[%emt 00:00:26]} Re2 {[%clk 00:06:19]} {[%emt 00:00:25]}
23. Rxe2 {[%clk 00:05:19]} {[%emt 00:01:08]} Qxe2 {[%clk 00:06:19]} {[%emt
00:00:04]} 24. Qb8+ {[%clk 00:05:08]} {[%emt 00:00:14]} Bf8 {[%clk 00:06:20]}
{[%emt 00:00:02]} 25. Bh6 {[%clk 00:04:48]} {[%emt 00:00:22]} Qe7 {[%clk
00:06:19]} {[%emt 00:00:05]} 26. Rd1 {[%clk 00:04:25]} {[%emt 00:00:26]} Bc6
{[%clk 00:05:22]} {[%emt 00:01:01]} 27. Bxf8 {[%clk 00:04:06]} {[%emt
00:00:21]} Qxf8 {[%clk 00:05:09]} {[%emt 00:00:16]} 28. Rd8 {[%clk 00:04:06]}
{[%emt 00:00:03]} 1-0

[Event "4. Memorial Svat.Hastika OPEN"]
[Site "Jesenik, Czech Republic"]
[Date "2022.09.03"]
[Round "8.8"]
[White "Taborsky, Bedrich"]
[Black "Basler, Jan"]
[Result "1-0"]
[TimeControl "720+3"]
[WhiteFideId "378151"]
[BlackFideId "23718420"]
[WhiteElo "1793"]
[BlackElo "1285"]

1. e4 {[%clk 00:12:03]} {[%emt 00:00:02]} e5 {[%clk 00:12:06]} 2. Bc4 {[%clk
00:12:04]} {[%emt 00:00:02]} Nf6 {[%clk 00:12:07]} {[%emt 00:00:02]} 3. Nf3
{[%clk 00:12:06]} Nc6 {[%clk 00:12:06]} {[%emt 00:00:04]} 4. d3 {[%clk
00:12:05]} {[%emt 00:00:04]} Bc5 {[%clk 00:12:08]} {[%emt 00:00:02]} 5. c3
{[%clk 00:12:06]} {[%emt 00:00:01]} Bb6 {[%clk 00:12:08]} {[%emt 00:00:03]} 6.
a4 {[%clk 00:12:06]} {[%emt 00:00:04]} d6 {[%clk 00:12:05]} {[%emt 00:00:05]} 7.
h3 {[%clk 00:12:07]} {[%emt 00:00:02]} Be6 {[%clk 00:12:06]} {[%emt 00:00:02]}
8. Bxe6 {[%clk 00:12:08]} {[%emt 00:00:02]} fxe6 {[%clk 00:12:07]} {[%emt
00:00:02]} 9. O-O {[%clk 00:12:07]} {[%emt 00:00:03]} O-O {[%clk 00:12:09]}
{[%emt 00:00:02]} 10. Ng5 {[%clk 00:11:59]} {[%emt 00:00:11]} Qe7 {[%clk
00:12:05]} {[%emt 00:00:06]} 11. b4 {[%clk 00:11:58]} {[%emt 00:00:05]} a6
{[%clk 00:12:07]} {[%emt 00:00:02]} 12. a5 {[%clk 00:11:50]} {[%emt 00:00:10]}
Ba7 {[%clk 00:12:07]} {[%emt 00:00:03]} 13. Be3 {[%clk 00:11:46]} {[%emt
00:00:06]} Bxe3 {[%clk 00:11:59]} {[%emt 00:00:11]} 14. fxe3 {[%clk 00:11:48]}
Nd7 {[%clk 00:12:01]} {[%emt 00:00:02]} 15. Qg4 {[%clk 00:11:39]} {[%emt
00:00:12]} Rxf1+ {[%clk 00:12:00]} {[%emt 00:00:04]} 16. Kxf1 {[%clk 00:11:40]}
{[%emt 00:00:01]} Rf8+ {[%clk 00:12:02]} 17. Kg1 {[%clk 00:11:41]} {[%emt
00:00:03]} Nd8 {[%clk 00:11:45]} {[%emt 00:00:20]} 18. Nd2 {[%clk 00:11:41]}
{[%emt 00:00:02]} Qf6 {[%clk 00:11:44]} {[%emt 00:00:04]} 19. Ngf3 {[%clk
00:11:34]} {[%emt 00:00:10]} Nc6 {[%clk 00:10:57]} {[%emt 00:00:51]} 20. Rf1
{[%clk 00:11:27]} {[%emt 00:00:06]} Qe7 {[%clk 00:10:53]} {[%emt 00:00:10]} 21.
Ng5 {[%clk 00:11:10]} {[%emt 00:00:20]} Rxf1+ {[%clk 00:10:52]} {[%emt
00:00:05]} 22. Nxf1 {[%clk 00:11:10]} {[%emt 00:00:02]} Nf8 {[%clk 00:10:54]}
{[%emt 00:00:02]} 23. Ng3 {[%clk 00:10:57]} {[%emt 00:00:15]} h6 {[%clk
00:10:56]} {[%emt 00:00:02]} 24. Nf3 {[%clk 00:10:54]} {[%emt 00:00:06]} d5
{[%clk 00:10:42]} {[%emt 00:00:17]} 25. exd5 {[%clk 00:10:46]} {[%emt
00:00:11]} exd5 {[%clk 00:10:44]} 26. Qc8 {[%clk 00:10:40]} {[%emt 00:00:09]}
d4 {[%clk 00:10:03]} {[%emt 00:00:44]} 27. exd4 {[%clk 00:10:29]} {[%emt
00:00:13]} exd4 {[%clk 00:10:06]} 28. Qxb7 {[%clk 00:10:25]} {[%emt 00:00:07]}
Nd8 {[%clk 00:09:33]} {[%emt 00:00:36]} 29. Qd5+ {[%clk 00:10:25]} {[%emt
00:00:03]} Nde6 {[%clk 00:09:32]} {[%emt 00:00:04]} 30. Nf5 {[%clk 00:10:19]}
{[%emt 00:00:08]} Qf6 {[%clk 00:09:21]} {[%emt 00:00:14]} 31. N5xd4 {[%clk
00:10:17]} {[%emt 00:00:06]} Kh8 {[%clk 00:09:11]} {[%emt 00:00:13]} 32. Nxe6
{[%clk 00:10:05]} {[%emt 00:00:14]} Nxe6 {[%clk 00:09:12]} {[%emt 00:00:03]} 33.
d4 {[%clk 00:10:00]} {[%emt 00:00:07]} Nf4 {[%clk 00:09:09]} {[%emt 00:00:06]}
34. Qe4 {[%clk 00:09:47]} {[%emt 00:00:14]} Qd6 {[%clk 00:08:40]} {[%emt
00:00:33]} 35. Ne5 {[%clk 00:09:39]} {[%emt 00:00:12]} Qf6 {[%clk 00:08:32]}
{[%emt 00:00:12]} 36. Kh2 {[%clk 00:09:13]} {[%emt 00:00:27]} g5 {[%clk
00:08:31]} {[%emt 00:00:05]} 37. Ng4 {[%clk 00:09:03]} {[%emt 00:00:12]} Qd6
{[%clk 00:08:29]} {[%emt 00:00:06]} 38. g3 {[%clk 00:08:25]} {[%emt 00:00:40]}
Nd5 {[%clk 00:08:30]} {[%emt 00:00:03]} 39. Qe8+ {[%clk 00:08:15]} {[%emt
00:00:12]} Kg7 {[%clk 00:08:29]} {[%emt 00:00:03]} 40. Qe5+ {[%clk 00:07:50]}
{[%emt 00:00:29]} Kg8 {[%clk 00:08:19]} {[%emt 00:00:12]} 41. c4 {[%clk
00:07:38]} {[%emt 00:00:16]} Nxb4 {[%clk 00:08:12]} {[%emt 00:00:10]} 42. c5
{[%clk 00:07:34]} {[%emt 00:00:06]} Qxe5 {[%clk 00:07:57]} {[%emt 00:00:19]} 43.
Nxe5 {[%clk 00:07:35]} {[%emt 00:00:02]} Kg7 {[%clk 00:07:52]} {[%emt
00:00:08]} 44. g4 {[%clk 00:07:33]} {[%emt 00:00:05]} Kf6 {[%clk 00:07:52]}
{[%emt 00:00:02]} 45. Kg3 {[%clk 00:07:33]} {[%emt 00:00:03]} Nc6 {[%clk
00:07:54]} {[%emt 00:00:01]} 46. Nxc6 {[%clk 00:07:33]} {[%emt 00:00:03]} 1-0

[Event "4. Memorial Svat.Hastika OPEN"]
[Site "Jesenik, Czech Republic"]
[Date "2022.09.03"]
[Round "8.10"]
[White "Zamarsky, Patrik"]
[Black "Tschulik, Daniel"]
[Result "1-0"]
[TimeControl "720+3"]
[WhiteFideId "23714280"]
[BlackFideId "23718528"]
[WhiteElo "1216"]
[BlackElo "1099"]

1. e4 {[%clk 00:12:04]} {[%emt 00:00:01]} e5 {[%clk 00:12:05]} {[%emt
00:00:01]} 2. Nf3 {[%clk 00:12:05]} {[%emt 00:00:02]} Nc6 {[%clk 00:12:07]}
{[%emt 00:00:02]} 3. d4 {[%clk 00:12:07]} {[%emt 00:00:01]} d6 {[%clk
00:12:08]} {[%emt 00:00:02]} 4. dxe5 {[%clk 00:12:08]} {[%emt 00:00:02]} dxe5
{[%clk 00:12:06]} {[%emt 00:00:04]} 5. Qxd8+ {[%clk 00:12:09]} {[%emt
00:00:02]} Nxd8 {[%clk 00:12:07]} {[%emt 00:00:02]} 6. Nxe5 {[%clk 00:12:11]}
{[%emt 00:00:01]} Nf6 {[%clk 00:12:09]} {[%emt 00:00:01]} 7. Bd3 {[%clk
00:12:08]} {[%emt 00:00:07]} Bd6 {[%clk 00:12:10]} {[%emt 00:00:02]} 8. Nc4
{[%clk 00:12:02]} {[%emt 00:00:08]} Be6 {[%clk 00:12:11]} {[%emt 00:00:02]} 9.
Nxd6+ {[%clk 00:12:03]} {[%emt 00:00:02]} cxd6 {[%clk 00:12:11]} {[%emt
00:00:03]} 10. Bf4 {[%clk 00:11:57]} {[%emt 00:00:09]} d5 {[%clk 00:12:09]}
{[%emt 00:00:06]} 11. exd5 {[%clk 00:11:47]} {[%emt 00:00:13]} Nxd5 {[%clk
00:12:08]} {[%emt 00:00:04]} 12. Bg3 {[%clk 00:11:32]} {[%emt 00:00:17]} O-O
{[%clk 00:12:09]} {[%emt 00:00:03]} 13. O-O {[%clk 00:11:33]} {[%emt 00:00:02]}
Nc6 {[%clk 00:11:48]} {[%emt 00:00:23]} 14. a3 {[%clk 00:11:24]} {[%emt
00:00:13]} Nf6 {[%clk 00:11:32]} {[%emt 00:00:18]} 15. Nc3 {[%clk 00:11:20]}
{[%emt 00:00:07]} a6 {[%clk 00:11:33]} {[%emt 00:00:03]} 16. Rad1 {[%clk
00:11:15]} {[%emt 00:00:05]} Rad8 {[%clk 00:11:20]} {[%emt 00:00:18]} 17. Ne4
{[%clk 00:11:10]} {[%emt 00:00:08]} Nxe4 {[%clk 00:11:11]} {[%emt 00:00:12]} 18.
Bxe4 {[%clk 00:11:12]} Rxd1 {[%clk 00:11:04]} {[%emt 00:00:10]} 19. Rxd1 {[%clk
00:11:14]} Re8 {[%clk 00:10:58]} {[%emt 00:00:09]} 20. h3 {[%clk 00:10:54]}
{[%emt 00:00:24]} g6 {[%clk 00:10:31]} {[%emt 00:00:30]} 21. Bd5 {[%clk
00:10:42]} {[%emt 00:00:15]} Bf5 {[%clk 00:10:28]} {[%emt 00:00:05]} 22. c4
{[%clk 00:10:32]} {[%emt 00:00:14]} h5 {[%clk 00:10:06]} {[%emt 00:00:25]} 23.
b4 {[%clk 00:10:23]} {[%emt 00:00:12]} Be6 {[%clk 00:10:07]} {[%emt 00:00:01]}
24. Bxe6 {[%clk 00:10:16]} {[%emt 00:00:11]} Rxe6 {[%clk 00:10:08]} {[%emt
00:00:01]} 25. Rd7 {[%clk 00:10:18]} {[%emt 00:00:02]} Re1+ {[%clk 00:09:54]}
{[%emt 00:00:17]} 26. Kh2 {[%clk 00:10:20]} {[%emt 00:00:01]} Ra1 {[%clk
00:09:51]} {[%emt 00:00:06]} 27. Rxb7 {[%clk 00:10:09]} {[%emt 00:00:13]} Rxa3
{[%clk 00:09:52]} {[%emt 00:00:02]} 28. Rb6 {[%clk 00:10:09]} {[%emt 00:00:03]}
Nd4 {[%clk 00:09:49]} {[%emt 00:00:07]} 29. c5 {[%clk 00:09:54]} {[%emt
00:00:18]} Rb3 {[%clk 00:09:39]} {[%emt 00:00:13]} 30. Be5 {[%clk 00:08:35]}
{[%emt 00:01:21]} Nc2 {[%clk 00:09:10]} {[%emt 00:00:33]} 31. Rb8+ {[%emt
00:00:12]} Kh7 {[%clk 00:08:59]} {[%emt 00:00:03]} 32. Rh8# {[%clk 00:08:34]}
{[%emt 00:00:02]} 1-0

[Event "4. Memorial Svat.Hastika OPEN"]
[Site "Jesenik, Czech Republic"]
[Date "2022.09.03"]
[Round "9.1"]
[White "Gnida, Patrik"]
[Black "Cempel, Jaroslav"]
[Result "0-1"]
[TimeControl "720+3"]
[WhiteFideId "351660"]
[BlackFideId "300730"]
[WhiteElo "2092"]
[BlackElo "1911"]

1. e4 {[%clk 00:12:04]} {[%emt 00:00:02]} e6 {[%clk 00:12:01]} {[%emt
00:00:05]} 2. Qe2 {[%clk 00:12:06]} {[%emt 00:00:01]} Nc6 {[%clk 00:11:50]}
{[%emt 00:00:15]} 3. Nf3 {[%clk 00:12:07]} {[%emt 00:00:01]} d5 {[%clk
00:11:35]} {[%emt 00:00:17]} 4. exd5 {[%clk 00:12:09]} {[%emt 00:00:02]} Qxd5
{[%clk 00:11:37]} 5. Nc3 {[%clk 00:12:11]} {[%emt 00:00:01]} Qd8 {[%clk
00:11:29]} {[%emt 00:00:11]} 6. g3 {[%clk 00:12:13]} {[%emt 00:00:02]} Nf6
{[%clk 00:11:30]} {[%emt 00:00:02]} 7. Bg2 {[%clk 00:12:14]} {[%emt 00:00:01]}
Be7 {[%clk 00:11:19]} {[%emt 00:00:14]} 8. O-O {[%clk 00:12:16]} O-O {[%clk
00:11:21]} {[%emt 00:00:01]} 9. Rd1 {[%clk 00:12:14]} {[%emt 00:00:05]} Bd7
{[%clk 00:11:08]} {[%emt 00:00:16]} 10. d4 {[%clk 00:12:13]} {[%emt 00:00:04]}
Bb4 {[%clk 00:10:43]} {[%emt 00:00:28]} 11. Ne4 {[%clk 00:11:03]} {[%emt
00:01:12]} Nxe4 {[%clk 00:10:38]} {[%emt 00:00:08]} 12. Qxe4 {[%clk 00:11:05]}
{[%emt 00:00:02]} Bd6 {[%clk 00:10:11]} {[%emt 00:00:30]} 13. b3 {[%clk
00:10:43]} {[%emt 00:00:25]} Rb8 {[%clk 00:09:36]} {[%emt 00:00:38]} 14. Bb2
{[%clk 00:10:41]} {[%emt 00:00:06]} Qe7 {[%clk 00:09:19]} {[%emt 00:00:19]} 15.
c4 {[%clk 00:10:35]} {[%emt 00:00:10]} Ba3 {[%clk 00:09:07]} {[%emt 00:00:14]}
16. Bc3 {[%clk 00:10:08]} {[%emt 00:00:30]} Bb4 {[%clk 00:09:08]} {[%emt
00:00:01]} 17. Bd2 {[%clk 00:10:08]} {[%emt 00:00:04]} Bxd2 {[%clk 00:08:58]}
{[%emt 00:00:12]} 18. Rxd2 {[%clk 00:10:11]} Rfe8 {[%clk 00:08:35]} {[%emt
00:00:27]} 19. Re1 {[%clk 00:10:07]} {[%emt 00:00:06]} h6 {[%clk 00:08:01]}
{[%emt 00:00:37]} 20. h4 {[%clk 00:09:40]} {[%emt 00:00:30]} Qb4 {[%clk
00:07:19]} {[%emt 00:00:45]} 21. Red1 {[%clk 00:09:24]} {[%emt 00:00:20]} Ne7
{[%clk 00:07:05]} {[%emt 00:00:17]} 22. Ne5 {[%clk 00:09:21]} {[%emt 00:00:06]}
Red8 {[%clk 00:05:24]} {[%emt 00:01:44]} 23. Nxd7 {[%clk 00:08:23]} {[%emt
00:01:00]} Rxd7 {[%clk 00:05:17]} {[%emt 00:00:10]} 24. Bh3 {[%clk 00:08:15]}
{[%emt 00:00:11]} Rbd8 {[%clk 00:03:29]} {[%emt 00:01:51]} 25. Rd3 {[%clk
00:08:03]} {[%emt 00:00:15]} Kh8 {[%clk 00:02:48]} {[%emt 00:00:44]} 26. Qf3
{[%clk 00:07:48]} {[%emt 00:00:18]} Nc6 {[%clk 00:02:17]} {[%emt 00:00:35]} 27.
Qe2 {[%clk 00:07:27]} {[%emt 00:00:24]} Rxd4 {[%clk 00:01:53]} {[%emt
00:00:26]} 28. Bg2 {[%clk 00:07:06]} {[%emt 00:00:24]} Rxd3 {[%clk 00:01:43]}
{[%emt 00:00:13]} 29. Rxd3 {[%clk 00:07:08]} {[%emt 00:00:01]} Rxd3 {[%clk
00:01:44]} {[%emt 00:00:02]} 30. Qxd3 {[%clk 00:07:10]} Qd6 {[%clk 00:01:40]}
{[%emt 00:00:06]} 31. Qe3 {[%clk 00:07:04]} {[%emt 00:00:10]} a6 {[%clk
00:01:27]} {[%emt 00:00:16]} 32. Bf3 {[%clk 00:06:56]} {[%emt 00:00:11]} Kg8
{[%clk 00:01:14]} {[%emt 00:00:17]} 33. Kg2 {[%clk 00:06:54]} {[%emt 00:00:04]}
Kf8 {[%clk 00:00:56]} {[%emt 00:00:21]} 34. Qc3 {[%clk 00:06:10]} {[%emt
00:00:47]} Kg8 {[%clk 00:00:48]} {[%emt 00:00:10]} 35. Qe3 {[%clk 00:06:12]}
{[%emt 00:00:02]} Kf8 {[%clk 00:00:41]} {[%emt 00:00:10]} 36. Qc3 {[%clk
00:06:07]} {[%emt 00:00:09]} Kg8 {[%clk 00:00:42]} {[%emt 00:00:02]} 37. Qe3
{[%clk 00:06:02]} {[%emt 00:00:08]} Qd7 {[%clk 00:00:34]} {[%emt 00:00:11]} 38.
Qc3 {[%clk 00:05:48]} {[%emt 00:00:17]} Qd6 {[%clk 00:00:34]} {[%emt 00:00:02]}
39. Qe3 {[%clk 00:05:50]} {[%emt 00:00:01]} Qd7 {[%clk 00:00:32]} {[%emt
00:00:05]} 40. Qc3 {[%clk 00:05:52]} Qd6 {[%clk 00:00:25]} {[%emt 00:00:10]} 41.
Qe3 {[%clk 00:05:54]} {[%emt 00:00:02]} e5 {[%clk 00:00:25]} {[%emt 00:00:04]}
42. Kh2 {[%clk 00:05:49]} {[%emt 00:00:08]} Kf8 {[%clk 00:00:12]} {[%emt
00:00:15]} 43. Bd5 {[%clk 00:05:27]} {[%emt 00:00:25]} Nd8 {[%clk 00:00:09]}
{[%emt 00:00:06]} 44. Kg2 {[%clk 00:05:15]} {[%emt 00:00:15]} c6 {[%clk
00:00:11]} 45. Bf3 {[%clk 00:05:12]} {[%emt 00:00:06]} Qd4 {[%clk 00:00:13]}
{[%emt 00:00:01]} 46. Qe1 {[%clk 00:05:10]} {[%emt 00:00:06]} Ne6 {[%clk
00:00:14]} {[%emt 00:00:02]} 47. Qb4+ {[%clk 00:04:45]} {[%emt 00:00:28]} Nc5
{[%clk 00:00:12]} {[%emt 00:00:05]} 48. Kg1 {[%clk 00:04:35]} {[%emt 00:00:13]}
g5 {[%clk 00:00:12]} {[%emt 00:00:02]} 49. hxg5 {[%clk 00:04:28]} {[%emt
00:00:11]} hxg5 {[%clk 00:00:14]} 0-1